bitfinex-derivatives/quotes_BTCF0:USTF0_20250922
["timestamp","ask_amount","ask_price","bid_price","bid_amount"]
[1758536627117,0.0004,112710.0,112700.0,1.24207096]
[1758536627821,0.53619,112720.0,112710.0,0.03532]
[1758536628016,0.53609,112720.0,112710.0,1.00818375]
[1758536629229,0.53609,112720.0,112710.0,1.09684275]
[1758536630815,0.53609,112720.0,112710.0,1.09784275]
[1758536632120,0.53609,112720.0,112710.0,1.09872275]
[1758536634323,0.5144,112720.0,112710.0,1.09872275]
[1758536635013,0.5148,112720.0,112710.0,1.09872275]
[1758536641830,0.5144,112720.0,112710.0,1.09872275]
[1758536642037,0.5148,112720.0,112710.0,1.09872275]
[1758536642725,0.0004,112720.0,112710.0,1.09872275]
[1758536643035,0.0004,112720.0,112710.0,1.34872275]
[1758536643232,0.0004,112720.0,112710.0,1.6207865]
[1758536643726,0.00675552,112730.0,112720.0,0.1231913]
[1758536643927,0.00665552,112730.0,112720.0,1.3381188]
[1758536644128,0.00665552,112730.0,112720.0,1.06605505]
[1758536644829,0.00705552,112730.0,112720.0,1.06605505]
[1758536645529,0.01105552,112730.0,112720.0,1.06605505]
[1758536648236,0.01105552,112730.0,112720.0,1.3381188]
[1758536649431,0.01105552,112730.0,112720.0,0.7939913]
[1758536649632,0.01105552,112730.0,112720.0,1.3381188]
[1758536651737,0.01105552,112730.0,112720.0,1.3389988]
[1758536655942,0.00705552,112730.0,112720.0,1.3419988]
[1758536656745,0.00705552,112730.0,112720.0,1.3449988]
[1758536667241,0.00705552,112730.0,112720.0,1.3450388]
[1758536676651,0.00705552,112730.0,112720.0,1.5950388]
[1758536676848,0.16444705,112760.0,112750.0,0.03493]
[1758536677153,0.16444705,112760.0,112750.0,0.98779375]
[1758536677848,0.18481245,112760.0,112750.0,0.98779375]
[1758536678048,0.19181245,112760.0,112750.0,0.98779375]
[1758536678244,0.44181245,112760.0,112750.0,1.07642155]
[1758536678845,0.44221245,112760.0,112750.0,1.07642155]
[1758536679061,0.44181245,112760.0,112750.0,1.07642155]
[1758536679250,0.19221245,112760.0,112750.0,1.07642155]
[1758536679558,0.19421245,112760.0,112750.0,1.07642155]
[1758536679857,0.19421245,112760.0,112750.0,1.07730155]
[1758536682353,0.19381245,112760.0,112750.0,1.07730155]
[1758536682554,0.19421245,112760.0,112750.0,1.07730155]
[1758536684661,0.19421245,112760.0,112750.0,1.00909742]
[1758536689066,0.19421245,112760.0,112750.0,1.21295704]
[1758536689361,0.17183245,112760.0,112750.0,1.21295704]
[1758536689561,0.17223245,112760.0,112750.0,1.21295704]
[1758536691164,0.1654054,112760.0,112750.0,1.21295704]
[1758536692768,0.1654054,112760.0,112750.0,1.00909742]
[1758536702175,0.1882354,112760.0,112750.0,0.8052378]
[1758536702476,0.1882354,112760.0,112750.0,1.00909742]
[1758536703577,0.1882354,112760.0,112750.0,0.68909742]
[1758536703779,0.1882354,112760.0,112750.0,1.00909742]
[1758536704573,0.1882354,112760.0,112750.0,0.98909742]
[1758536706079,0.1882354,112760.0,112750.0,0.7852378]
[1758536706579,0.1882354,112760.0,112750.0,0.98909742]
[1758536709476,0.1882354,112760.0,112750.0,1.01909742]
[1758536710578,1.30427829,112760.0,112750.0,0.02288]
[1758536710774,1.30427829,112760.0,112750.0,0.00088]
[1758536715777,1.16863829,112760.0,112750.0,0.00088]
[1758536715978,3.85611829,112760.0,112750.0,0.00088]
[1758536716887,1.16863829,112760.0,112750.0,0.00088]
[1758536717087,3.85615829,112760.0,112750.0,0.00088]
[1758536717990,3.44843905,112760.0,112750.0,0.00088]
[1758536718190,3.85615829,112760.0,112750.0,0.00088]
[1758536722795,3.85607829,112760.0,112750.0,0.00088]
[1758536725283,3.85611829,112760.0,112750.0,0.00088]
[1758536726391,0.02252,112740.0,112730.0,0.03335]
[1758536726592,1.63063904,112740.0,112720.0,0.21673962]
[1758536726793,0.02252,112730.0,112720.0,0.23793962]
[1758536726982,0.22637962,112730.0,112720.0,0.03408]
[1758536727188,0.22637962,112730.0,112720.0,0.23793962]
[1758536727390,0.22537962,112730.0,112720.0,0.49793962]
[1758536727694,0.22537962,112730.0,112720.0,0.23793962]
[1758536728292,0.22537962,112730.0,112720.0,0.24393962]
[1758536728497,1.04449962,112730.0,112720.0,0.33259072]
[1758536728694,0.84064,112730.0,112720.0,0.32959072]
[1758536728897,1.04449962,112730.0,112720.0,0.33259072]
[1758536729192,0.84064,112730.0,112720.0,0.83645034]
[1758536729696,1.04449962,112730.0,112720.0,0.63259072]
[1758536730092,1.04449962,112730.0,112720.0,0.4287311]
[1758536730299,1.04449962,112730.0,112720.0,0.04008]
[1758536730493,1.04449962,112730.0,112720.0,0.24393962]
[1758536730694,0.22537962,112730.0,112720.0,0.33259082]
[1758536730896,1.04449962,112730.0,112720.0,0.33259082]
[1758536731096,0.84064,112730.0,112720.0,0.33259082]
[1758536731493,0.22537962,112730.0,112720.0,0.33259082]
[1758536731692,0.84064,112730.0,112720.0,0.33259082]
[1758536731893,1.04449962,112730.0,112720.0,0.33259082]
[1758536733592,1.04445962,112730.0,112720.0,0.33259082]
[1758536734194,1.04445962,112730.0,112720.0,0.04008]
[1758536734495,1.04445962,112730.0,112720.0,0.24393962]
[1758536735499,0.22537962,112730.0,112720.0,0.58259092]
[1758536735803,1.04445962,112730.0,112720.0,0.58259092]
[1758536736701,1.04445962,112730.0,112720.0,0.49393962]
[1758536736893,0.22537962,112730.0,112720.0,0.49393962]
[1758536737095,1.04445962,112730.0,112720.0,0.58259092]
[1758536737395,0.22537962,112730.0,112720.0,0.58259092]
[1758536737595,0.8406,112730.0,112720.0,0.58259092]
[1758536737899,1.04445962,112730.0,112720.0,0.60259092]
[1758536739296,0.8406,112730.0,112720.0,0.60259092]
[1758536739493,0.8406,112730.0,112720.0,0.1287313]
[1758536739694,0.8406,112730.0,112720.0,0.61259092]
[1758536739695,1.04445962,112730.0,112720.0,0.61259092]
[1758536739890,0.8406,112730.0,112720.0,0.61259092]
[1758536740404,1.04445962,112730.0,112720.0,0.61259092]
[1758536740807,0.22537962,112730.0,112720.0,0.61259092]
[1758536741197,0.02152,112730.0,112720.0,0.61259092]
[1758536741397,1.04441962,112730.0,112720.0,0.61259092]
[1758536742899,1.04441962,112730.0,112720.0,0.97339092]
[1758536743501,1.04441962,112730.0,112720.0,0.7695313]
[1758536743695,1.04441962,112730.0,112720.0,0.97339092]
[1758536743905,0.22537962,112730.0,112720.0,0.97339092]
[1758536744102,0.02152,112730.0,112720.0,1.17725054]
[1758536744296,0.84096,112730.0,112720.0,1.17725054]
[1758536744896,0.84056,112730.0,112720.0,1.17725054]
[1758536745096,0.84096,112730.0,112720.0,1.17725054]
[1758536745299,0.84096,112730.0,112720.0,0.7695313]
[1758536745503,0.84096,112730.0,112720.0,1.17725054]
[1758536746206,0.84096,112730.0,112720.0,0.7695313]
[1758536746408,0.84096,112730.0,112720.0,1.17725054]
[1758536746597,0.84096,112730.0,112720.0,1.04148403]
[1758536746798,0.84096,112730.0,112720.0,0.7695313]
[1758536747101,0.02192,112730.0,112720.0,1.04148403]
[1758536747307,0.6992,112730.0,112720.0,1.04148403]
[1758536748808,0.6992,112730.0,112720.0,0.7695313]
[1758536749010,0.6992,112730.0,112720.0,1.04148403]
[1758536755608,0.6992,112730.0,112720.0,0.7695313]
[1758536755809,0.6992,112730.0,112720.0,0.97283273]
[1758536756010,0.6992,112730.0,112720.0,1.06148403]
[1758536756209,0.6992,112730.0,112720.0,0.76148403]
[1758536756412,0.6992,112730.0,112720.0,1.05148403]
[1758536756611,0.6992,112730.0,112720.0,0.7795313]
[1758536757216,0.6992,112730.0,112720.0,0.8095313]
[1758536757612,0.6992,112730.0,112720.0,0.7595313]
[1758536761417,0.6992,112730.0,112720.0,0.4895313]
[1758536761617,0.6992,112730.0,112720.0,0.7495313]
[1758536762118,0.6992,112730.0,112720.0,0.4895313]
[1758536762322,0.6992,112730.0,112720.0,0.7795313]
[1758536767724,0.6992,112730.0,112720.0,0.7595313]
[1758536770518,0.84064,112730.0,112720.0,0.7595313]
[1758536776826,0.84064,112730.0,112720.0,0.4895313]
[1758536777027,1.11259273,112730.0,112720.0,0.04008]
[1758536777723,0.84064,112730.0,112720.0,0.04008]
[1758536777927,1.11259273,112730.0,112720.0,0.04008]
[1758536778128,1.37334273,112730.0,112720.0,0.00604]
[1758536779526,1.73414273,112730.0,112720.0,0.00604]
[1758536780628,1.46219,112730.0,112720.0,0.00604]
[1758536780829,1.73414273,112730.0,112720.0,0.00604]
[1758536782828,1.76146285,112730.0,112720.0,0.00604]
[1758536787739,1.76134285,112730.0,112720.0,0.00604]
[1758536793135,2.03329558,112730.0,112720.0,0.00604]
[1758536793436,3.62990285,112730.0,112710.0,0.00088]
[1758536793636,0.67650867,112720.0,112700.0,0.1019148]
[1758536793838,0.67650867,112720.0,112700.0,0.1238848]
[1758536793839,1.11370273,112710.0,112700.0,0.1238848]
[1758536794042,1.14102285,112710.0,112700.0,0.03522]
[1758536794442,1.14102285,112710.0,112700.0,0.05293751]
[1758536794643,1.11370273,112710.0,112700.0,0.05293751]
[1758536795142,1.11816878,112710.0,112700.0,0.06093751]
[1758536795831,1.12879878,112710.0,112700.0,0.00804]
[1758536796030,1.12879878,112710.0,112700.0,0.01304]
[1758536796235,1.12879878,112710.0,112700.0,0.03511]
[1758536796236,1.20023833,112710.0,112700.0,0.03511]
[1758536796435,1.20023833,112710.0,112700.0,0.03599]
[1758536797531,1.56103833,112710.0,112700.0,0.03599]
[1758536798730,1.56103833,112710.0,112700.0,0.01392]
[1758536799346,1.56103833,112710.0,112700.0,0.03599]
[1758536800639,1.55336833,112710.0,112700.0,0.04886]
[1758536803746,0.73488833,112710.0,112700.0,0.04886]
[1758536803946,1.55336833,112710.0,112700.0,0.04886]
[1758536804149,0.73488833,112710.0,112700.0,0.04886]
[1758536804644,1.55332833,112710.0,112700.0,0.04886]
[1758536806146,0.73488833,112710.0,112700.0,0.04886]
[1758536806340,1.55332833,112710.0,112700.0,0.04886]
[1758536806540,1.48547211,112710.0,112700.0,0.04886]
[1758536808041,0.66703211,112710.0,112700.0,0.4275271]
[1758536808242,0.66703211,112710.0,112700.0,0.63162361]
[1758536808243,1.12463211,112710.0,112700.0,0.63162361]
[1758536808445,1.12463211,112710.0,112700.0,0.99242361]
[1758536810345,0.30623211,112710.0,112700.0,0.99242361]
[1758536810550,1.12467211,112710.0,112700.0,0.99242361]
[1758536810849,1.12463211,112710.0,112700.0,0.96242361]
[1758536811150,1.12463211,112710.0,112700.0,0.4983271]
[1758536811346,0.1021356,112710.0,112700.0,1.21652012]
[1758536811544,0.9205356,112710.0,112700.0,1.21652012]
[1758536811744,0.9209356,112710.0,112700.0,1.01242361]
[1758536812145,1.12503211,112710.0,112700.0,1.01242361]
[1758536812342,1.12503211,112710.0,112700.0,0.70242361]
[1758536812747,1.12503211,112710.0,112700.0,1.02242361]
[1758536813150,0.30663211,112710.0,112700.0,1.02242361]
[1758536813342,1.12459211,112710.0,112700.0,1.02242361]
[1758536813549,1.12499211,112710.0,112700.0,1.02242361]
[1758536814950,1.12499211,112710.0,112700.0,0.1375272]
[1758536815153,1.49642211,112710.0,112700.0,0.01392]
[1758536815363,1.49642211,112710.0,112700.0,0.03657]
[1758536815955,1.48579211,112710.0,112700.0,0.04939]
[1758536816359,1.49579211,112710.0,112700.0,0.04139]
[1758536816957,1.49579211,112710.0,112700.0,0.03639]
[1758536817554,1.96051862,112710.0,112700.0,0.00092]
[1758536818364,1.98782196,112710.0,112700.0,0.00092]
[1758536818548,1.96051862,112710.0,112700.0,0.00092]
[1758536818752,1.98782372,112710.0,112700.0,0.00092]
[1758536820460,1.98782372,112710.0,112700.0,4e-05]
[1758536822255,0.03293,112690.0,112680.0,0.00024]
[1758536822456,1.43677133,112690.0,112680.0,4e-05]
[1758536822862,1.64086784,112690.0,112680.0,4e-05]
[1758536823356,1.66816718,112690.0,112680.0,0.00304]
[1758536823556,1.67116718,112690.0,112680.0,0.00304]
[1758536824159,1.67116718,112690.0,112680.0,4e-05]
[1758536824666,0.85292718,112690.0,112680.0,0.00092]
[1758536824857,3.54020718,112690.0,112680.0,0.00092]
[1758536825265,3.54220718,112690.0,112680.0,0.00092]
[1758536829163,3.54236718,112690.0,112680.0,0.00092]
[1758536829366,0.85492718,112690.0,112680.0,0.00092]
[1758536829759,3.54236718,112690.0,112680.0,0.00092]
[1758536830863,3.79236718,112690.0,112680.0,0.00092]
[1758536831168,4.35730369,112690.0,112650.0,0.03090917]
[1758536831469,0.22627651,112660.0,112650.0,0.37355917]
[1758536831767,1.04451651,112660.0,112650.0,0.37355917]
[1758536832157,1.24861302,112660.0,112650.0,0.37355917]
[1758536832361,1.24861302,112660.0,112650.0,0.13751]
[1758536832872,1.24861302,112660.0,112650.0,0.13551]
[1758536833064,1.24861302,112660.0,112650.0,0.13751]
[1758536833268,1.32076544,112660.0,112650.0,0.13751]
[1758536834371,1.32076544,112660.0,112650.0,0.14051]
[1758536835562,0.50252544,112660.0,112650.0,0.14051]
[1758536835766,1.32076544,112660.0,112650.0,0.14051]
[1758536837066,0.50252544,112660.0,112650.0,0.14051]
[1758536837467,0.91253242,112660.0,112650.0,0.2292156]
[1758536837662,1.32072544,112660.0,112650.0,0.2292156]
[1758536837878,0.09433242,112660.0,112650.0,0.2292156]
[1758536838076,1.32072544,112660.0,112650.0,0.2292156]
[1758536838874,1.32072544,112660.0,112650.0,0.1291756]
[1758536839373,0.50252544,112660.0,112650.0,0.1291756]
[1758536839574,1.32072544,112660.0,112650.0,0.1291756]
[1758536840073,1.11662893,112660.0,112650.0,0.59327211]
[1758536840275,0.91253242,112660.0,112650.0,0.59327211]
[1758536840574,1.11662893,112660.0,112650.0,0.3891756]
[1758536840771,1.11662893,112660.0,112650.0,0.1291756]
[1758536841769,0.29842893,112660.0,112650.0,0.1291756]
[1758536841961,0.29842893,112660.0,112650.0,1.00407211]
[1758536841962,1.11662893,112660.0,112650.0,1.00407211]
[1758536844176,1.11662893,112660.0,112650.0,0.4899756]
[1758536844377,1.11662893,112660.0,112650.0,0.99407211]
[1758536844573,0.09433242,112660.0,112650.0,0.99407211]
[1758536844778,1.11662893,112660.0,112650.0,0.69407211]
[1758536845079,1.11662893,112660.0,112650.0,1.00407211]
[1758536845576,1.11662893,112660.0,112650.0,0.4999756]
[1758536845877,1.11662893,112660.0,112650.0,1.00407211]
[1758536846579,1.32072544,112660.0,112650.0,0.4899756]
[1758536846877,1.32072544,112660.0,112650.0,0.95407211]
[1758536847072,1.11662893,112660.0,112650.0,0.95407211]
[1758536848373,1.11662893,112660.0,112650.0,0.60536651]
[1758536848771,1.11662893,112660.0,112650.0,0.69407191]
[1758536849779,1.11662893,112660.0,112650.0,0.40127]
[1758536850077,1.34798691,112660.0,112650.0,0.40127]
[1758536850279,1.32072544,112660.0,112650.0,0.40127]
[1758536850480,1.34799575,112660.0,112650.0,0.40127]
[1758536850666,1.32072544,112660.0,112650.0,0.40127]
[1758536850873,1.34799588,112660.0,112650.0,0.40127]
[1758536851373,1.34799588,112660.0,112650.0,0.04047]
[1758536854083,1.34799588,112660.0,112650.0,0.04039]
[1758536855478,1.34799588,112660.0,112650.0,0.40119]
[1758536856073,1.34799588,112660.0,112650.0,0.70119]
[1758536856877,1.34799588,112660.0,112650.0,0.40119]
[1758536858579,0.52979588,112660.0,112650.0,0.40119]
[1758536858777,1.34795588,112660.0,112650.0,0.60528651]
[1758536859179,1.34795588,112660.0,112650.0,0.40119]
[1758536859884,1.34795588,112660.0,112650.0,0.69119]
[1758536860574,1.34795588,112660.0,112650.0,0.68719]
[1758536860774,1.34795588,112660.0,112650.0,0.68819]
[1758536862580,0.93976286,112660.0,112650.0,0.39819]
[1758536862886,1.34795588,112660.0,112650.0,0.66819]
[1758536863686,1.34791588,112660.0,112650.0,0.66819]
[1758536865687,1.34791588,112660.0,112650.0,0.03739]
[1758536865887,1.34791588,112660.0,112650.0,0.39819]
[1758536866786,0.52979588,112660.0,112650.0,0.7868953]
[1758536866988,1.14381937,112660.0,112650.0,0.99099181]
[1758536867485,1.14381937,112660.0,112650.0,0.87228651]
[1758536868786,1.2120616,112660.0,112650.0,0.66819]
[1758536869089,1.2120616,112660.0,112650.0,0.66815]
[1758536869389,0.93972286,112660.0,112650.0,0.66815]
[1758536869988,0.93972286,112660.0,112650.0,0.39815]
[1758536870186,0.93972286,112660.0,112650.0,0.66815]
[1758536871591,0.12160286,112660.0,112650.0,0.66815]
[1758536871892,0.07255242,112660.0,112650.0,1.29692177]
[1758536872092,0.89063242,112660.0,112650.0,1.29692177]
[1758536872284,0.89023242,112660.0,112650.0,1.29692177]
[1758536872887,0.89063242,112660.0,112650.0,1.29692177]
[1758536873994,0.81848,112660.0,112650.0,1.29692177]
[1758536874292,0.0004,112660.0,112650.0,1.29692177]
[1758536874690,0.11252,112670.0,112660.0,0.0361]
[1758536874889,0.11252,112670.0,112660.0,1.05793614]
[1758536875186,0.0009,112680.0,112670.0,0.01285]
[1758536875393,0.70777838,112680.0,112670.0,1.07792824]
[1758536875593,0.63544,112680.0,112670.0,1.07792824]
[1758536876392,0.64144,112680.0,112670.0,0.8055895]
[1758536876593,0.64144,112680.0,112670.0,1.07792824]
[1758536876993,0.64344,112680.0,112670.0,1.07792824]
[1758536879598,0.71430976,112680.0,112670.0,1.07792824]
[1758536886300,0.89746976,112680.0,112670.0,1.07792824]
[1758536887709,0.07966976,112680.0,112670.0,1.07792824]
[1758536887897,0.89738976,112680.0,112670.0,1.07792824]
[1758536888203,0.07966976,112680.0,112670.0,1.07792824]
[1758536888405,0.87382976,112680.0,112670.0,1.07792824]
[1758536888609,0.89738976,112680.0,112670.0,1.07792824]
[1758536889501,0.91890976,112680.0,112670.0,1.07792824]
[1758536889700,0.91890976,112680.0,112670.0,0.8055895]
[1758536889902,0.91890976,112680.0,112670.0,1.07792824]
[1758536906413,0.91890976,112680.0,112670.0,0.8055895]
[1758536906609,0.91890976,112680.0,112670.0,1.07792824]
[1758536908022,0.10118976,112680.0,112670.0,1.07792824]
[1758536908222,0.90690976,112680.0,112670.0,1.07792824]
[1758536908423,0.10118976,112680.0,112670.0,1.07792824]
[1758536908723,0.90686976,112680.0,112670.0,1.07792824]
[1758536909422,0.91858976,112680.0,112670.0,1.07792824]
[1758536909924,0.10118976,112680.0,112670.0,1.07792824]
[1758536910124,0.90678976,112680.0,112670.0,1.07792824]
[1758536910523,0.10118976,112680.0,112670.0,1.07792824]
[1758536911024,0.90674976,112680.0,112670.0,1.07792824]
[1758536912424,0.91854976,112680.0,112670.0,1.07792824]
[1758536912631,0.10118976,112680.0,112670.0,1.07792824]
[1758536912928,0.91850976,112680.0,112670.0,1.07792824]
[1758536918530,0.91850976,112680.0,112670.0,1.07880824]
[1758536922332,0.10118976,112680.0,112670.0,1.07880824]
[1758536922533,0.91834976,112680.0,112670.0,1.07880824]
[1758536922734,0.91834976,112680.0,112670.0,0.8064695]
[1758536924838,0.91834976,112680.0,112670.0,1.07880824]
[1758536927833,0.91834976,112680.0,112670.0,0.8064695]
[1758536928539,1.1225184,112680.0,112670.0,1.01063814]
[1758536929940,1.59772838,112680.0,112670.0,0.00088]
[1758536930138,1.62486314,112680.0,112670.0,0.00088]
[1758536930441,1.6038218,112680.0,112670.0,0.00088]
[1758536932237,1.9646218,112680.0,112670.0,0.00088]
[1758536932835,2.16879044,112680.0,112670.0,0.00088]
[1758536933039,1.9646218,112680.0,112670.0,0.00088]
[1758536933241,2.16879044,112680.0,112670.0,0.00088]
[1758536934144,1.9646218,112680.0,112670.0,0.00088]
[1758536934543,2.18915213,112680.0,112670.0,0.00088]
[1758536935637,1.37199213,112680.0,112670.0,0.00088]
[1758536935837,1.16782349,112680.0,112670.0,0.00088]
[1758536936045,0.75948621,112680.0,112670.0,0.00088]
[1758536936246,3.85418349,112680.0,112670.0,0.00088]
[1758536936437,3.8338218,112680.0,112670.0,0.00088]
[1758536936844,3.85473214,112680.0,112670.0,0.00088]
[1758536937148,3.85477214,112680.0,112670.0,0.00088]
[1758536937840,1.16837214,112680.0,112670.0,0.00088]
[1758536938245,3.85477214,112680.0,112670.0,0.00088]
[1758536939047,1.16837214,112680.0,112670.0,0.00088]
[1758536939247,3.85485214,112680.0,112670.0,0.00088]
[1758536939442,3.60485214,112680.0,112670.0,0.02349]
[1758536942341,3.60485214,112680.0,112670.0,0.00088]
[1758536942544,3.60489214,112680.0,112670.0,0.00088]
[1758536943043,0.91837214,112680.0,112670.0,0.02349]
[1758536943248,3.57771738,112680.0,112670.0,0.00088]
[1758536944744,3.60470842,112680.0,112670.0,0.00088]
[1758536951949,4.05887706,112680.0,112670.0,0.00088]
[1758536953247,3.85470842,112680.0,112670.0,0.00088]
[1758536953649,4.05887706,112680.0,112670.0,0.00088]
[1758536958762,1.37239706,112680.0,112670.0,0.00088]
[1758536959066,4.05867706,112680.0,112670.0,0.00088]
[1758536959866,3.85450842,112680.0,112670.0,0.00088]
[1758536960166,4.05867706,112680.0,112670.0,0.00088]
[1758536963866,4.05875137,112680.0,112670.0,0.00088]
[1758536965470,4.41955137,112680.0,112670.0,0.00088]
[1758536970973,3.80704545,112680.0,112670.0,0.00088]
[1758536971174,4.41955137,112680.0,112670.0,0.00088]
[1758536972570,4.41755137,112680.0,112670.0,0.00088]
[1758536972774,4.42055137,112680.0,112670.0,0.00088]
[1758536972975,3.80804545,112680.0,112670.0,0.00088]
[1758536973178,4.42055137,112680.0,112670.0,0.00088]
[1758536973770,1.73427137,112680.0,112670.0,0.00088]
[1758536973970,4.42027137,112680.0,112670.0,0.00088]
[1758536974777,4.45210266,112680.0,112670.0,0.00088]
[1758536976673,4.46801877,112680.0,112670.0,0.00088]
[1758536979184,0.03279,112670.0,112660.0,0.09986197]
[1758536979481,0.86093106,112670.0,112660.0,0.09986197]
[1758536980488,0.86393106,112670.0,112660.0,0.09986197]
[1758536981572,0.86493106,112670.0,112660.0,0.09986197]
[1758536982778,0.86493106,112670.0,112660.0,0.01767197]
[1758536982984,0.45659378,112670.0,112660.0,0.01767197]
[1758536983177,0.86493106,112670.0,112660.0,0.01767197]
[1758536983888,0.86493106,112670.0,112640.0,0.48102625]
[1758536984078,0.22620864,112650.0,112640.0,0.73554605]
[1758536984276,0.44152728,112650.0,112640.0,0.08087]
[1758536984479,1.28459382,112650.0,112640.0,0.1064]
[1758536984879,1.04232864,112650.0,112640.0,0.1064]
[1758536985087,1.04232864,112650.0,112640.0,0.1114]
[1758536985587,0.83816,112650.0,112640.0,0.1114]
[1758536985785,1.04232864,112650.0,112640.0,0.12433]
[1758536986687,1.05060686,112650.0,112640.0,0.12433]
[1758536986882,0.84643822,112650.0,112640.0,0.12433]
[1758536987085,1.05060686,112650.0,112640.0,0.12433]
[1758536987284,1.05060686,112650.0,112640.0,0.12233]
[1758536987487,0.23448686,112650.0,112640.0,0.12233]
[1758536987684,1.05056686,112650.0,112640.0,0.12233]
[1758536988284,0.23448686,112650.0,112640.0,0.12233]
[1758536988588,1.11881253,112650.0,112640.0,0.12233]
[1758536990586,0.30273253,112650.0,112640.0,0.12233]
[1758536990788,1.11881253,112650.0,112640.0,0.12233]
[1758536992988,0.84639822,112650.0,112640.0,0.12233]
[1758536993191,1.11881253,112650.0,112640.0,0.12233]
[1758536993492,0.30273253,112650.0,112640.0,0.12233]
[1758536993696,1.11881253,112650.0,112640.0,0.12233]
[1758536994189,1.11881253,112650.0,112640.0,0.12146]
[1758537000692,1.47961253,112650.0,112640.0,0.12146]
[1758537001982,1.50654533,112650.0,112640.0,0.12146]
[1758537002183,1.49076253,112650.0,112640.0,0.0842]
[1758537002390,1.51769545,112650.0,112640.0,0.0842]
[1758537002704,2.04010976,112650.0,112640.0,0.0842]
[1758537002883,2.04010976,112650.0,112620.0,0.01415]
[1758537002884,0.00365,112640.0,112620.0,0.01045807]
[1758537003192,1.48300431,112630.0,112610.0,4e-05]
[1758537003385,0.29541431,112620.0,112610.0,4e-05]
[1758537003592,0.29541431,112620.0,112610.0,0.02281]
[1758537003787,1.11145431,112620.0,112610.0,0.02281]
[1758537004190,1.18098485,112620.0,112610.0,0.02281]
[1758537004688,0.36494485,112620.0,112610.0,0.02281]
[1758537004998,1.18102485,112620.0,112610.0,0.0438]
[1758537006389,0.36494485,112620.0,112610.0,0.04384]
[1758537006695,1.18102485,112620.0,112610.0,0.04384]
[1758537006896,1.18106485,112620.0,112610.0,0.04384]
[1758537007289,0.90865054,112620.0,112610.0,0.02985]
[1758537007495,0.36494485,112620.0,112610.0,0.02985]
[1758537007698,1.18106485,112620.0,112610.0,0.02985]
[1758537008197,0.36494485,112620.0,112610.0,0.02985]
[1758537008503,1.18106485,112620.0,112610.0,0.02985]
[1758537009801,1.18106485,112620.0,112610.0,0.1325768]
[1758537013098,1.18106485,112620.0,112610.0,0.04384]
[1758537014099,1.18106485,112620.0,112610.0,0.1325768]
[1758537016302,1.2082166,112620.0,112610.0,0.1325768]
[1758537016703,1.18106485,112620.0,112610.0,0.1325768]
[1758537017300,1.20821688,112620.0,112610.0,0.1325768]
[1758537017501,1.20821688,112620.0,112610.0,0.04384]
[1758537017805,1.20821688,112620.0,112610.0,0.02985]
[1758537017806,1.18106485,112620.0,112610.0,0.02985]
[1758537018204,1.2082169,112620.0,112610.0,0.02985]
[1758537019297,1.2082169,112620.0,112610.0,0.1185868]
[1758537020198,1.2082169,112620.0,112610.0,0.02985]
[1758537024509,1.2082169,112620.0,112610.0,0.1185869]
[1758537024809,1.2082169,112620.0,112610.0,0.02985]
[1758537026311,1.5690169,112620.0,112610.0,0.02985]
[1758537027803,0.93580259,112620.0,112610.0,0.1185869]
[1758537028003,1.2082169,112620.0,112610.0,0.1185869]
[1758537028813,1.2082169,112620.0,112610.0,0.02985]
[1758537029611,0.93580259,112620.0,112610.0,0.02985]
[1758537029812,1.2082169,112620.0,112610.0,0.02985]
[1758537030312,1.2082169,112620.0,112610.0,0.1185869]
[1758537032207,0.93580259,112620.0,112610.0,0.1185869]
[1758537032407,1.2082169,112620.0,112610.0,0.1185869]
[1758537033216,1.2082169,112620.0,112610.0,0.1320569]
[1758537033516,0.11968259,112620.0,112610.0,0.3820569]
[1758537033717,0.93580259,112620.0,112610.0,1.01527121]
[1758537034118,0.93620259,112620.0,112610.0,1.01527121]
[1758537034416,0.93580259,112620.0,112610.0,1.01527121]
[1758537034611,0.93620259,112620.0,112610.0,1.01527121]
[1758537035911,0.12008259,112620.0,112610.0,1.01527121]
[1758537036216,0.93616259,112620.0,112610.0,0.7428569]
[1758537036518,0.93616259,112620.0,112610.0,1.01527121]
[1758537037918,0.93616259,112620.0,112610.0,0.7428569]
[1758537038117,0.93616259,112620.0,112610.0,1.01527121]
[1758537038918,0.90901054,112620.0,112610.0,1.01527121]
[1758537041619,0.90901054,112620.0,112610.0,0.7428569]
[1758537042914,0.90901054,112620.0,112610.0,0.4928569]
[1758537043113,1.18142485,112620.0,112610.0,0.4928569]
[1758537043316,1.18142485,112620.0,112610.0,0.40412]
[1758537045724,1.18142485,112620.0,112610.0,0.39065]
[1758537046125,1.18142485,112620.0,112610.0,0.02985]
[1758537046425,1.20861713,112620.0,112610.0,0.02985]
[1758537047025,1.18142485,112620.0,112610.0,0.02985]
[1758537048827,1.20861793,112620.0,112610.0,0.02985]
[1758537050532,1.345064,112620.0,112610.0,0.02985]
[1758537050832,1.345064,112620.0,112610.0,0.02485]
[1758537051032,1.352064,112620.0,112610.0,0.02485]
[1758537051730,1.352064,112620.0,112610.0,8e-05]
[1758537051933,1.354064,112620.0,112610.0,8e-05]
[1758537052829,1.354064,112620.0,112610.0,0.02126]
[1758537053525,1.604064,112620.0,112610.0,8e-05]
[1758537053730,2.16929419,112620.0,112610.0,8e-05]
[1758537054132,1.964864,112620.0,112610.0,8e-05]
[1758537054333,2.16929419,112620.0,112610.0,8e-05]
[1758537054533,1.964864,112620.0,112610.0,8e-05]
[1758537055221,1.55600362,112620.0,112610.0,8e-05]
[1758537055432,1.964864,112620.0,112610.0,8e-05]
[1758537056328,1.148784,112620.0,112610.0,8e-05]
[1758537056532,3.835264,112620.0,112610.0,8e-05]
[1758537056934,4.03969419,112620.0,112610.0,8e-05]
[1758537058529,4.07163262,112620.0,112610.0,8e-05]
[1758537058930,4.06263262,112620.0,112610.0,8e-05]
[1758537059133,4.07563262,112620.0,112610.0,8e-05]
[1758537059336,1.35721419,112620.0,112610.0,8e-05]
[1758537059839,4.04377419,112620.0,112610.0,8e-05]
[1758537060139,1.35721419,112620.0,112610.0,8e-05]
[1758537060336,4.04377419,112620.0,112600.0,0.08315]
[1758537060532,0.80382038,112610.0,112600.0,0.08315]
[1758537060731,0.83101346,112610.0,112600.0,0.08315]
[1758537061439,0.83101346,112610.0,112600.0,0.00092]
[1758537061840,3.51761346,112610.0,112600.0,0.00092]
[1758537062139,0.83101346,112610.0,112600.0,0.00092]
[1758537062338,0.83201346,112610.0,112600.0,0.00092]
[1758537062540,3.51865346,112610.0,112600.0,0.00092]
[1758537063936,3.51865346,112610.0,112600.0,0.08315]
[1758537073248,0.83201346,112610.0,112600.0,0.08315]
[1758537073648,3.51885346,112610.0,112600.0,0.08315]